Cogmind - Beta 15 @@@ ROGUE MODE // 2025.08.10 @ 06:20:21 Player: shapeshifter Result: Destroyed by B-90 Cyclops with Nova Cannon Performance ------------- Evolutions (8) 4000 Regions Visited (14) 2800 Robots Destroyed (167) 835 Value Destroyed (7003) 7003 Prototype IDs (13) 260 Alien Tech Used (0) 0 Bonus (5984) 5984 TOTAL SCORE: 20882 Bonus ------- High Alert Combat Kills 1506 Follower Combat Kills 1678 Built Enhanced Grunts 300 Met R17 at Cetus 500 Met R17 at Research 2000 Cogmind --------- Core Integrity 0/1450 Matter 11/300 Energy 99/100 System Corruption 7% Temperature Cool (9) Movement Core (50) Location -2/Research Parts ------- > --- POWER (2) -------- (None) > --- PROPULSION (8) --- (None) > --- UTILITY (10) ----- Experimental Coolant Injector Advanced Visual Processing Unit Graphene Brace > --- WEAPON (3) ------- (None) > --- INVENTORY (5) ---- High-capacity Storage Unit Compact Battery (200) Advanced Particle Accelerator Advanced Variable Charge Gun Heavy Machine Gun Peak State ------------ > --- POWER ------------ Micro Fission Core Quantum Reactor > --- PROPULSION ------- Centrium Heavy Treads Centrium Heavy Treads Centrium Heavy Treads > --- UTILITY ---------- Improved Heat Sink Huge Storage Unit Advanced Visual Processing Unit Advanced Signal Interpreter Improved Salvage Targeting Computer Centrium Medium Armor Plating Centrium Medium Armor Plating Centrium Medium Armor Plating Improved Remote Shield > --- WEAPON ----------- Railgun Improved Proton Missile Launcher > --- INVENTORY -------- Improved Deuterium Engine Angular Momentum Engine Centrium Heavy Treads Centrium Heavy Treads High-capacity Storage Unit Hardened Heavy Armor Plating Hardened Heavy Armor Plating Hardened Heavy Armor Plating Advanced Variable Charge Gun Advanced Variable Charge Gun Heavy Machine Gun Heavy Machine Gun Improved Proton Missile Launcher Power Maul Greatsword Phasing Sabre [Rating: 142] Favorites ----------- Power Improved Deuterium Engine Engine Improved Deuterium Engine Power Core Enhanced Nuclear Core Reactor Quantum Reactor Propulsion Myomer Leg Treads Centrium Heavy Treads Leg Myomer Leg Wheel Armored Huge Wheel Flight Unit Improved Flight Unit Utility Advanced Visual Processing Unit Device Improved Heat Sink Storage High-capacity Storage Unit Processor Advanced Visual Processing Unit Hackware Hacking Suite Protection Centrium Medium Armor Plating Weapon Power Maul Energy Gun High-powered Field Laser Energy Cannon Enhanced Nova Cannon Ballistic Gun Autogun Ballistic Cannon Enhanced Hardcell Cannon Launcher Improved Proton Missile Launcher Impact Weapon Power Maul Slashing Weapon Phasing Sabre Build | -11 -10 -9 -9 -9 -8 -8 -7 -6 -6 -6 -5 -4 -3 -2 ------- Run | Yrd Mat Mat Min Exi Min Mat Fac Fac Ext Cet Fac Fac Res Res Slots Evolved 16 | . . 2 . . . 2 2 2 . . 2 2 2 2 Power 1 | . . . . . . . . . . . . 1 . . Propulsion 6 | . . 2 . . . . 1 1 . . . . 2 . Utility 8 | . . . . . . 2 1 1 . . 2 1 . 1 Weapon 1 | . . . . . . . . . . . . . . 1 Parts Attached 148 | 6 9 9 . . . 20 4 5 21 10 2 11 27 24 Power 20 | 1 1 1 . . . 2 1 . 2 1 . 1 5 5 Engine 7 | 1 1 1 . . . 1 1 . 1 . . . 1 . Core 3 | . . . . . . 1 . . 1 . . 1 . . Reactor 10 | . . . . . . . . . . 1 . . 4 5 Propulsion 65 | 2 4 4 . . . 8 3 1 12 5 . 3 13 10 Treads 12 | . 2 . . . . 1 . . . 5 . . . 4 Leg 44 | 2 2 . . . . 6 3 1 12 . . . 12 6 Wheel 4 | . . . . . . . . . . . . 3 1 . Hover . | . . . . . . . . . . . . . . . Flight 5 | . . 4 . . . 1 . . . . . . . . Utility 29 | 1 2 1 . . . 4 . 3 2 2 2 5 4 3 Device 10 | . 2 . . . . 1 . . . . 1 1 3 2 Storage 3 | 1 . . . . . 1 . . . 1 . . . . Processor 5 | . . . . . . 2 . 1 1 . . . . 1 Hackware 1 | . . . . . . . . 1 . . . . . . Protection 10 | . . 1 . . . . . 1 1 1 1 4 1 . Artifact . | . . . . . . . . . . . . . . . Weapon 34 | 2 2 3 . . . 6 . 1 5 2 . 2 5 6 Energy Gun 7 | . . 1 . . . 2 . . 1 2 . . . 1 Energy Cannon 1 | . . . . . . . . . . . . . . 1 Ballistic Gun 9 | 2 . 2 . . . 2 . . . . . 1 2 . Ballistic Cannon 1 | . . . . . . . . . . . . . . 1 Launcher 9 | . 1 . . . . . . 1 2 . . . 2 3 Special Weapon . | . . . . . . . . . . . . . . . Impact Weapon 4 | . 1 . . . . 2 . . 1 . . . . . Slashing Weapon 3 | . . . . . . . . . 1 . . 1 1 . Piercing Weapon . | . . . . . . . . . . . . . . . Special Melee Weapon . | . . . . . . . . . . . . . . . Unidentified Prototypes 11 | . . 3 . . . 1 . . 1 3 . . 1 2 Corrupted Parts 8 | . . . . . . . . . . 8 . . . . System Corruption 64 | . . . . . . . . . . 64 . . . . Parts Lost 96 | . 5 1 . . 1 9 2 . 9 1 . 21 13 34 Power 17 | . 1 . . . 1 1 1 . 1 . . 3 2 7 Propulsion 43 | . 1 . . . . 5 1 . 7 1 . 4 8 16 Utility 19 | . 1 1 . . . 1 . . 1 . . 10 1 4 Weapon 17 | . 2 . . . . 2 . . . . . 4 2 7 Highest Loss Streak 16 | . 4 1 . . 1 4 2 . 4 1 . 16 5 15 To Critical Strikes 1 | . . . . . . . . . . . . 1 . . Average Backups 11 | 4 5 5 7 7 7 7 11 13 15 16 16 14 8 12 Power 1 | . 1 . . . . . . 1 2 2 2 1 . . Propulsion 1 | 2 3 2 2 2 2 . . . . . 2 1 1 3 Utility 3 | . . 1 3 3 3 2 4 4 6 7 5 3 2 3 Weapon 4 | . 1 1 2 2 2 4 6 7 6 6 7 7 3 3 Tool/Special . | . . . . . . . . . . . . . . . Unused Backups 17 | 1 . 6 . . . 2 1 . 2 1 . . . 4 Power 1 | . . 1 . . . . . . . . . . . . Propulsion 5 | . . 4 . . . 1 . . . . . . . . Utility 7 | . . 1 . . . 1 1 . . 1 . . . 3 Weapon 4 | 1 . . . . . . . . 2 . . . . 1 Tool/Special . | . . . . . . . . . . . . . . . Average Slot Usage (%) 81 | . 92 80 100 100 95 85 86 99 93 86 81 67 63 65 Engine 3 | . 12 11 11 11 6 1 3 6 2 . . 1 . . Core 1 | . . . . . . 4 3 . 3 1 . 3 . . Reactor 2 | . . . . . . . . . . 4 5 3 5 6 Treads 5 | . 11 18 . . . . . . . 13 17 11 . 1 Leg 19 | . 15 . . . . 22 33 40 34 12 . . 21 25 Flight 2 | . . 7 44 44 44 8 . . . . . . . . Device 5 | . 13 4 . . . 5 7 1 . . 5 6 8 10 Storage 6 | . 14 11 11 11 11 9 7 6 6 6 5 5 4 3 Processor 12 | . . . . . . 13 15 18 22 26 17 11 9 8 Hackware 2 | . . . . . . . . 5 6 6 5 . . . Protection 3 | . . 6 11 11 11 1 . 5 2 . 10 10 . . Energy Gun 3 | . . . . . . 7 7 5 4 1 9 . 3 2 Ballistic Gun 2 | . 12 10 6 11 11 2 . . . . . 3 1 . Launcher 2 | . 7 6 4 . . . . . . 11 1 2 1 2 Impact Weapon 3 | . 4 5 11 11 11 6 7 6 6 . . . . . Peak Build Rating 142 | 6 9 22 20 20 20 33 44 54 77 116 127 142 127 136 Average Rating 66 | 4 8 11 19 20 19 26 37 53 65 97 126 112 84 111 On Entrance 46 | . 6 9 20 20 20 18 33 44 51 77 116 125 38 122 Naked Turns . | . . . . . . . . . . . . . . . Heaviest Build 165 | 12 16 19 18 18 18 53 58 63 64 117 128 165 144 156 Greatest Support 240 | 20 20 40 20 20 20 48 70 82 130 240 240 240 175 195 Greatest Overweight (x) 10 | . 1 3 . . . 1 1 . 1 . . 4 10 1 Average Overweight (x) . | . . . . . . . . . . . . . . . Largest Inventory Capacity 25 | 8 8 8 8 8 8 20 20 20 20 25 25 25 25 25 Average Capacity 19 | 7 8 8 8 8 8 12 20 20 20 21 25 25 25 24 Most Carried 25 | 8 8 8 7 7 7 11 19 18 20 25 23 24 16 17 Average Carried 13 | 4 5 5 7 6 7 8 13 17 19 21 22 18 8 13 Final Capacity 25 | 8 8 8 8 8 8 20 20 20 20 25 25 25 25 5 Final Carried 24 | 7 3 7 7 7 7 11 19 18 20 24 22 12 16 5 Class Distribution -------------------- 42% | Scavenger-Mutant 38% | Mutant 12% | Commander-Mutant 4% | Sprinter Dominant Class ---------------- Mutant | -10/Materials Mutant | -9/Materials Sprinter | -9/Mines Sprinter | -9/Exiles Sprinter | -8/Mines Scavenger-Mutant | -8/Materials Scavenger-Mutant | -7/Factory Mutant | -6/Factory Mutant | -6/Extension Commander-Mutant | -6/Cetus Scavenger-Mutant | -5/Factory Scavenger-Mutant | -4/Factory Scavenger-Mutant | -3/Research Scavenger-Mutant | -2/Research Resources | -11 -10 -9 -9 -9 -8 -8 -7 -6 -6 -6 -5 -4 -3 -2 ----------- Run | Yrd Mat Mat Min Exi Min Mat Fac Fac Ext Cet Fac Fac Res Res Matter Collected 2859 | 278 244 221 10 . 52 452 13 . 280 155 104 168 668 214 Remotely . | . . . . . . . . . . . . . . . Salvage Created 6937 | 144 336 329 20 . 139 643 68 . 555 464 520 1554 951 1214 Parts 352 | 12 27 19 5 . 1 40 5 . 11 19 29 86 29 69 Haulers Intercepted 5 | . . 1 . . . 1 . . 1 . . . . 2 Recyclers Shooed 8 | . 1 . . . . . . . . . . 4 2 1 Parts Field Recycled . | . . . . . . . . . . . . . . . Retrieved Matter . | . . . . . . . . . . . . . . . Parts Self-Destructed . | . . . . . . . . . . . . . . . Prevented . | . . . . . . . . . . . . . . . Kills | -11 -10 -9 -9 -9 -8 -8 -7 -6 -6 -6 -5 -4 -3 -2 ------- Run | Yrd Mat Mat Min Exi Min Mat Fac Fac Ext Cet Fac Fac Res Res Combat Hostiles Destroyed 120 | . 11 6 3 . 3 15 1 . 9 5 7 19 16 25 Melee 9 | . . . . . 1 2 1 . 2 . . 1 2 . Guns 40 | . 6 4 . . . 10 . . 3 . 1 4 3 9 Cannons 5 | . . . . . . . . . . . . . . 5 AOE 48 | . 5 2 3 . . 2 . . . . 6 10 9 11 Classes Destroyed 17 | 2 4 2 . . . 2 1 . 2 . 1 1 . 2 Worker 12 | . . . . . . . . . . . . 4 . 8 Builder 15 | . 1 . . . . 1 . . . . 2 4 1 6 Tunneler 4 | 3 . . . . . . 1 . . . . . . . Hauler 5 | . . 1 . . . 1 . . 1 . . . . 2 Recycler 2 | 1 . . . . . . . . . . . . 1 . Operator 2 | . . . . . . . . . 1 . . . 1 . Watcher 5 | . 2 1 . . . . . . . 2 . . . . Swarmer 33 | . 3 . 3 . . 5 . . 3 . . 2 3 14 Cutter 3 | . . . . . . . . . . . 3 . . . Grunt 51 | . 8 2 . . 3 7 . . 3 . 3 12 8 5 Brawler 2 | . . . . . . 1 . . . . . 1 . . Duelist 5 | . . . . . . 1 . . 1 . 1 1 1 . Sentry 7 | . . 4 . . . 1 . . 1 . . . . 1 Specialist 2 | . . . . . . . . . . . . . . 2 Hunter 10 | . . . . . . . 1 . . . . 3 4 2 Programmer 1 | . . . . . . . . . . . . . . 1 Behemoth 1 | . . . . . . . . . 1 . . . . . Cetus Guard 5 | . . . . . . . . . . 5 . . . . Enhanced Grunt 2 | . . . . . . . . . . . 2 . . . Best Kill Streak 12 | 4 5 3 3 . 2 7 1 . 3 4 6 12 6 11 Combat Bots Only 8 | . 4 3 3 . 2 7 1 . 3 3 4 6 5 8 Max Kills in Single Turn 10 | 1 2 1 3 . 1 2 1 . 1 1 4 4 3 10 Gunslinging 1 | . . . . . . 1 . . . . . . . . Exploded 3 | . 2 1 3 . . 2 . . . . 2 3 3 3 Melee 1 | . . . . . 1 1 1 . 1 . . 1 1 . Uniques/NPCs Destroyed . | . . . . . . . . . . . . . . . Combat | -11 -10 -9 -9 -9 -8 -8 -7 -6 -6 -6 -5 -4 -3 -2 -------- Run | Yrd Mat Mat Min Exi Min Mat Fac Fac Ext Cet Fac Fac Res Res Hostile Shots Fired 1993 | . 88 68 1 . 21 149 32 4 210 27 45 657 189 502 Missed 668 | . 15 38 . . 5 38 9 4 65 14 14 230 62 174 Hits 1325 | . 73 30 1 . 16 111 23 . 145 13 31 427 127 328 Melee 14 | . . . . . . . . . 1 . 3 9 1 . Projectile 1311 | . 73 30 1 . 16 111 23 . 144 13 28 418 126 328 AOE 6 | . . . . . . . . . . . . . 6 . Critical Strikes 40 | . . . . . 2 3 1 . 4 . 4 17 5 4 Actively Blocked 12 | . . . . . 2 1 . . . . . . 5 4 Part Disruptions 1 | . . . . . . . . . . . . . . 1 Damage Taken 23473 | . 745 401 13 . 246 1438 291 . 2066 271 905 7400 3061 6636 Core 3743 | . 177 40 10 . 92 414 42 . 310 43 20 556 581 1458 Absorbed by Shields 735 | . . . . . . . . . . 100 . 635 . . Redirected to Shielding 136 | . . 8 1 . 20 21 . . . . . . 86 . Core Remaining (%) 63 | 100 29 . . . 64 24 94 . . 58 98 51 55 . Volleys Fired 323 | 7 35 56 1 . . 26 . . 17 5 12 41 46 77 Largest 2 | 2 2 1 1 . . 2 . . 1 2 2 2 1 2 Hottest 240 | 40 50 30 30 . . 98 . . 70 86 160 240 80 123 Shots Fired 390 | 14 58 56 1 . . 44 . . 18 9 19 42 46 83 Gun 288 | 14 49 52 . . . 43 . . 18 . 14 22 38 38 Cannon 37 | . . . . . . . . . . . . . . 37 Launcher 65 | . 9 4 1 . . 1 . . . 9 5 20 8 8 Special . | . . . . . . . . . . . . . . . Kinetic 201 | 14 49 52 . . . 20 . . . . . 20 26 20 Thermal 124 | . . . . . . 23 . . 18 . 14 2 12 55 Explosive 31 | . 9 4 1 . . 1 . . . . . . 8 8 Electromagnetic 34 | . . . . . . . . . . 9 5 20 . . Robot Hit Streak 12 | 3 8 12 3 . . 7 . . 5 4 3 6 11 7 Robot Miss Streak 4 | 3 4 4 . . . 2 . . 2 3 4 3 2 3 Penetration Max 1 | . . . . . . 1 . . . . . . . . Secondary Targets 3 | . 1 . . . . 1 . . . . 1 . . . Max Gunslinging Chain 1 | . 1 . . . . 1 . . . . 1 . . . Capacitor 53 | . . . . . . . . . . . . . 4 49 Shots Hit Robots 332 | 6 34 43 1 . 10 37 4 . 43 4 9 37 51 53 Core Hits 266 | 4 21 15 3 . 2 21 2 . 9 8 19 72 28 62 Critical Kills 2 | . . . . . 1 . . . . . . . 1 . Critical Parts Destroyed 13 | . 1 . . . 2 3 1 . 5 . . . 1 . Critical Strikes 22 | . 1 . . . 3 4 1 . 7 . . . 4 2 Burn 2 | . . . . . . 1 . . 1 . . . . . Blast 2 | . . . . . . . . . . . . . . 2 Smash 15 | . 1 . . . 3 3 1 . 5 . . . 2 . Sever 3 | . . . . . . . . . 1 . . . 2 . Melee Attacks 125 | . 2 2 . . 14 16 8 6 42 . . 18 17 . Impact 93 | . 2 2 . . 14 16 8 6 35 . . . 10 . Slashing 32 | . . . . . . . . . 7 . . 18 7 . Piercing . | . . . . . . . . . . . . . . . Sneak Attacks 9 | . . 1 . . 1 1 1 . 3 . . . 2 . Combat Hostiles 2 | . . . . . 1 . . . 1 . . . . . Follow-up Attacks . | . . . . . . . . . . . . . . . Damage Inflicted 20483 | 78 793 815 121 . 302 1298 278 . 1843 798 1171 3642 3246 6098 Guns 4194 | 78 351 597 . . . 738 . . 246 . 221 445 769 749 Cannons 1224 | . . . . . . . . . . . . . . 1224 Explosions 11126 | . 424 147 121 . . 176 . . . 798 950 2799 1602 4109 Melee 3767 | . 18 71 . . 302 384 278 . 1562 . . 277 875 . Ramming 172 | . . . . . . . . . 35 . . 121 . 16 Kinetic 2900 | 78 351 597 . . . 468 . . . . . 327 492 587 Thermal 3831 | . . . . . . 270 . . 246 . 623 601 277 1814 Explosive 6151 | . 424 147 121 . . 176 . . . . . . 1602 3681 Electromagnetic 3662 | . . . . . . . . . . 798 548 2316 . . Impact 2927 | . 18 71 . . 302 384 278 . 1316 . . . 558 . Slashing 840 | . . . . . . . . . 246 . . 277 317 . Piercing . | . . . . . . . . . . . . . . . Highest Corruption 65 | . . . . . . . . . 1 65 . 12 5 7 Average Corruption 5 | . . . . . . . . . 1 21 . 7 4 1 Corruption Purged . | . . . . . . . . . . . . . . . Corruption Blocked . | . . . . . . . . . . . . . . . Effects 46 | . . . . . . . . . 9 10 . 15 4 8 Message Errors 14 | . . . . . . . . . 4 3 . 1 3 3 Matter Fused 11 | . . . . . . . . . 2 3 . 3 . 3 Heat Flow Errors 2 | . . . . . . . . . . . . 1 . 1 Energy Discharges 7 | . . . . . . . . . 1 1 . 4 1 . Parts Rejected 1 | . . . . . . . . . . . . 1 . . Data Loss (minor) 6 | . . . . . . . . . 1 2 . 2 . 1 Data Loss (major) 1 | . . . . . . . . . . . . 1 . . Misfires 1 | . . . . . . . . . 1 . . . . . Misdirections 2 | . . . . . . . . . . . . 2 . . Weapon Failures 1 | . . . . . . . . . . 1 . . . . Overload Shots 2 | . . . . . . . . . . . . 2 . . Effects 1 | . . . . . . . . . . . . 1 . . Energy Bleed 1 | . . . . . . . . . . . . 1 . . Overflow Damage 1326 | . 18 20 . . 87 209 61 . 273 11 57 19 298 273 Projectiles 29 | . . . . . . . . . . . . . . 29 Explosions 419 | . . 9 . . . . . . . 11 57 19 79 244 Melee 878 | . 18 11 . . 87 209 61 . 273 . . . 219 . Knockbacks 15 | . . . . . 1 1 1 . 3 . . 1 4 4 Impact 11 | . . . . . 1 1 1 . 3 . . 1 4 . Kinetic 4 | . . . . . . . . . . . . . . 4 Secondary . | . . . . . . . . . . . . . . . Self-Inflicted Damage 650 | . 14 . 5 . . . . . . 5 41 231 . 354 Shots 20 | . 2 . 1 . . . . . . 1 2 8 . 6 Rammed 9 | . . . . . . . . . . . . 8 . 1 Targets Rammed 10 | . . . . . . . . . 1 . . 8 . 1 Kicked 1 | . . . . . . . . . 1 . . . . . Crushed . | . . . . . . . . . . . . . . . Highest Temperature 360 | . 6 14 . . 3 360 . . 300 3 207 346 108 360 Average Temperature 102 | . 4 6 . . 2 147 . . 64 2 69 112 31 145 Received Heat Transfer 3761 | . 279 153 . . 135 693 . . 829 17 219 959 324 153 Effects 7 | . . . . . . 4 . . . . . . . 3 Energy Bleed 2 | . . . . . . 1 . . . . . . . 1 Interference 5 | . . . . . . 3 . . . . . . . 2 Siege Activations . | . . . . . . . . . . . . . . . Martial Activations . | . . . . . . . . . . . . . . . Shielding Activations . | . . . . . . . . . . . . . . . Robots Disrupted 3 | . . . . . . . . . . . . 1 1 1 Combat Hostiles 3 | . . . . . . . . . . . . 1 1 1 Robots Corrupted 24 | . . . . . 2 2 . . 5 6 1 4 4 . Combat Hostiles 18 | . . . . . 2 1 . . 4 5 . 4 2 . Parts Fried 26 | . 2 . . . 1 1 . . 6 6 . 4 6 . Impact Corruptions 37 | . 1 1 . . 3 9 3 . 13 . . . 7 . Robots Melted . | . . . . . . . . . . . . . . . Combat Hostiles . | . . . . . . . . . . . . . . . Parts Melted 9 | . . . . . . . . . 3 . 1 1 3 1 Heat Transferred 4545 | . . . . . . 518 . . 481 . 546 650 407 1943 Parts Sabotaged . | . . . . . . . . . . . . . . . Parts Stolen . | . . . . . . . . . . . . . . . Parts Stripped . | . . . . . . . . . . . . . . . Power Chain Reactions 13 | . . . . . . . . . . . 5 5 . 3 Alert | -11 -10 -9 -9 -9 -8 -8 -7 -6 -6 -6 -5 -4 -3 -2 ------- Run | Yrd Mat Mat Min Exi Min Mat Fac Fac Ext Cet Fac Fac Res Res Maximum Alert Level 4 | . . . . . . 1 . . . 1 3 4 3 3 Low Security (%) 59 | 100 100 100 100 . 100 20 100 100 100 96 44 . . . Level 1 9 | . . . . . . 79 . . . 3 35 15 . 1 Level 2 16 | . . . . . . . . . . . 15 15 64 67 Level 3 12 | . . . . . . . . . . . 4 50 35 31 Level 4 1 | . . . . . . . . . . . . 18 . . Level 5 . | . . . . . . . . . . . . . . . High Security . | . . . . . . . . . . . . . . . Max Security . | . . . . . . . . . . . . . . . Peak Influence 1215 | 10 171 85 121 . 40 350 151 3 158 204 712 1215 859 1087 Initial 633 | . . 63 32 . . 11 151 . 1 4 80 340 633 459 Average 278 | 2 90 35 111 . 20 241 43 . 51 122 264 819 651 652 Influence Increases 6812 | 20 341 263 89 . 70 614 56 11 790 310 974 1383 670 1221 Destroy 0b10 Robot/C 3160 | . 220 120 60 . 60 300 20 . 500 160 360 540 320 500 Destroy 0b10 Robot/NC 245 | 20 15 10 . . . 10 5 . 15 10 20 45 15 80 Destroy Leader 456 | . 44 44 10 . 10 42 10 . 40 . 62 50 50 94 Allied During Kill 762 | . . . . . . . . . 113 139 417 93 . . Successful Hack 139 | . 6 14 . . . 8 19 7 26 . . . 16 43 Disable Machine 330 | . 15 . 15 . . . . . 60 . 15 180 15 30 Anti-Garrison Action 150 | . . . . . . . . . . . . 150 . . Destroy Structure 910 | . 41 15 4 . . 14 2 4 21 1 100 70 224 414 Partial Spotted 30 | . . 15 . . . . . . . . . . . 15 Lose Combat Pursuer 630 | . . 45 . . . 240 . . 15 . . 255 30 45 Influence Decreases 5766 | 20 190 330 62 111 40 310 390 8 785 174 422 872 1060 992 Entered New Map 1811 | . . 88 52 111 . 19 183 . 2 4 64 356 574 358 Time Decay 2617 | 20 140 242 10 . 30 220 202 8 431 140 238 286 356 294 Lost Part 896 | . 50 . . . 10 71 5 . 70 10 . 210 130 340 Lost Ally 442 | . . . . . . . . . 282 20 120 20 . . Squads Dispatched 46 | . 3 2 . . 1 4 3 1 2 . 4 9 7 10 Investigation 16 | . 2 1 . . 1 1 . 1 1 . 1 2 3 3 Extermination 3 | . . . . . . . 1 . . . . 1 . 1 Reinforcement 22 | . 1 1 . . . 3 2 . 1 . 3 4 4 3 Assault 2 | . . . . . . . . . . . . 2 . . Garrison 3 | . . . . . . . . . . . . . . 3 Intercept . | . . . . . . . . . . . . . . . Searches Triggered . | . . . . . . . . . . . . . . . Construction Impeded 4 | . . . . . . . . . . . 1 2 . 1 Haulers Reinforced 1 | . . . . . . . . . . . . . 1 . Active Scanning Responses . | . . . . . . . . . . . . . . . Cargo Convoy Interrupts . | . . . . . . . . . . . . . . . Stealth | -11 -10 -9 -9 -9 -8 -8 -7 -6 -6 -6 -5 -4 -3 -2 --------- Run | Yrd Mat Mat Min Exi Min Mat Fac Fac Ext Cet Fac Fac Res Res Distress Signals 21 | . . 1 . . . 1 . . 1 2 1 1 10 4 Communications Jammed . | . . . . . . . . . . . . . . . Distress Signals . | . . . . . . . . . . . . . . . Times Spotted 296 | . 17 20 3 . 4 41 5 5 28 10 22 62 33 46 Peak Tracking Total 17 | . 5 12 3 . 3 13 2 4 3 5 7 17 4 16 Tactical Retreats 17 | . . 1 . . . 4 . . 1 . . 7 1 3 Traps | -11 -10 -9 -9 -9 -8 -8 -7 -6 -6 -6 -5 -4 -3 -2 ------- Run | Yrd Mat Mat Min Exi Min Mat Fac Fac Ext Cet Fac Fac Res Res Traps Triggered 9 | . 2 1 . . . . . . 3 . . 1 . 2 Indirectly . | . . . . . . . . . . . . . . . Trap Hack Attempts . | . . . . . . . . . . . . . . . Triggered . | . . . . . . . . . . . . . . . Disarmed . | . . . . . . . . . . . . . . . Reprogrammed 6 | . . 6 . . . . . . . . . . . . Reused . | . . . . . . . . . . . . . . . Traps Extracted . | . . . . . . . . . . . . . . . Installed . | . . . . . . . . . . . . . . . Triggered . | . . . . . . . . . . . . . . . Machines | -11 -10 -9 -9 -9 -8 -8 -7 -6 -6 -6 -5 -4 -3 -2 ---------- Run | Yrd Mat Mat Min Exi Min Mat Fac Fac Ext Cet Fac Fac Res Res Machines Disabled 23 | . 1 . 1 . . . . . 4 . 1 13 1 2 Max in Single Turn 4 | . 1 . 1 . . . . . 1 . . 4 1 1 Garrison Access 2 | . . . . . . 1 . . . . . 1 . . Energy Cycler 1 | . . . . . . . . . 1 . . . . . Machines Repaired . | . . . . . . . . . . . . . . . Machines Dismantled . | . . . . . . . . . . . . . . . Machines Sabotaged . | . . . . . . . . . . . . . . . Overloaded Fab Kills . | . . . . . . . . . . . . . . . Hacking | -11 -10 -9 -9 -9 -8 -8 -7 -6 -6 -6 -5 -4 -3 -2 --------- Run | Yrd Mat Mat Min Exi Min Mat Fac Fac Ext Cet Fac Fac Res Res Machines Accessed 39 | . 1 4 . 1 1 4 3 4 7 . 2 1 6 5 Terminals 32 | . 1 4 . . 1 3 3 3 6 . 1 . 5 5 Fabricators 3 | . . . . . . . . 1 . . 1 . 1 . Repair Stations . | . . . . . . . . . . . . . . . Recycling Units 1 | . . . . . . . . . 1 . . . . . Scanalyzers . | . . . . . . . . . . . . . . . Garrison Access 2 | . . . . . . 1 . . . . . 1 . . Total Hacks 95 | . 2 12 . 1 6 8 6 7 18 . 4 3 11 17 Successful 33 | . 2 5 . 1 1 4 2 2 10 . . . 1 5 Failed 62 | . . 7 . . 5 4 4 5 8 . 4 3 10 12 Catastrophic 16 | . . 1 . . 1 1 1 2 1 . 1 1 4 3 Database Lockouts . | . . . . . . . . . . . . . . . Manual 17 | . 2 . . . . 1 1 1 1 1 . . . 10 Terminals 83 | . 2 12 . . 6 7 6 5 16 . 2 . 10 17 Fabricators 5 | . . . . . . . . 2 . . 2 . 1 . Repair Stations . | . . . . . . . . . . . . . . . Recycling Units 2 | . . . . . . . . . 2 . . . . . Scanalyzers . | . . . . . . . . . . . . . . . Garrison Access 4 | . . . . . . 1 . . . . . 3 . . Terminal Hacks 27 | . 1 5 . 1 1 3 2 2 8 . . . 1 3 Record 1 | . . . . 1 . . . . . . . . . . Robot Schematic 1 | . . . . . . . . . 1 . . . . . Prototype ID Bank 1 | . . 1 . . . . . . . . . . . . Open Door 3 | . . . . . . . . 1 2 . . . . . Open DSF 1 | . . . . . . . . 1 . . . . . . Level Access Points 1 | . . . . . . 1 . . . . . . . . Branch Access Points 3 | . . 1 . . . . . . . . . . 1 1 Emergency Access Points 1 | . . . . . . . 1 . . . . . . . Alert Level 1 | . . . . . . . . . 1 . . . . . Locate Traps 1 | . . 1 . . . . . . . . . . . . Reprogram Traps 1 | . . 1 . . . . . . . . . . . . Recall Reinforcements 1 | . . . . . . . . . 1 . . . . . Hauler Manifests 1 | . . . . . . . . . . . . . . 1 Registered Components 1 | . . . . . . 1 . . . . . . . . Registered Prototypes 1 | . . . . . . . . . 1 . . . . . Zone Layout 8 | . 1 1 . . 1 1 1 . 2 . . . . 1 Fabricator Hacks . | . . . . . . . . . . . . . . . Repair Station Hacks . | . . . . . . . . . . . . . . . Recycling Unit Hacks 2 | . . . . . . . . . 2 . . . . . Report Inventory 1 | . . . . . . . . . 1 . . . . . Retrieve Components 1 | . . . . . . . . . 1 . . . . . Scanalyzer . | . . . . . . . . . . . . . . . Garrison Access Hacks 1 | . . . . . . 1 . . . . . . . . Seal Access 1 | . . . . . . 1 . . . . . . . . Unauthorized Hacks 3 | . 1 . . . . . . . . . . . . 2 Terminals 3 | . 1 . . . . . . . . . . . . 2 Botnet 3 | . 1 . . . . . . . . . . . . 2 Fabricators . | . . . . . . . . . . . . . . . Repair Stations . | . . . . . . . . . . . . . . . Recycling Units . | . . . . . . . . . . . . . . . Scanalyzers . | . . . . . . . . . . . . . . . Garrison Access . | . . . . . . . . . . . . . . . Data Cores Recovered . | . . . . . . . . . . . . . . . Used . | . . . . . . . . . . . . . . . Hacking Detections 32 | . . 3 . . 1 3 2 4 5 . 2 1 6 5 Full Trace Events 10 | . . . . . 1 1 . 1 . . 1 1 3 2 Feedback Events 2 | . . . . . . . . . . . . . 1 1 Corruption 2 | . . . . . . . . . . . . . 1 1 Feedback Blocked . | . . . . . . . . . . . . . . . Robot Schematics Acquired 1 | . . . . . . . . . 1 . . . . . Robots Built . | . . . . . . . . . . . . . . . Authchips . | . . . . . . . . . . . . . . . Time . | . . . . . . . . . . . . . . . Total Robot Build Rating . | . . . . . . . . . . . . . . . Part Schematics Acquired . | . . . . . . . . . . . . . . . Parts Built . | . . . . . . . . . . . . . . . Authchips . | . . . . . . . . . . . . . . . Time . | . . . . . . . . . . . . . . . Total Part Build Rating . | . . . . . . . . . . . . . . . Parts Repaired . | . . . . . . . . . . . . . . . Time . | . . . . . . . . . . . . . . . Parts Recycled . | . . . . . . . . . . . . . . . Recycled Matter . | . . . . . . . . . . . . . . . Retrieved Matter . | . . . . . . . . . . . . . . . Retrieved Components 2 | . . . . . . . . . 2 . . . . . Parts Scanalyzed . | . . . . . . . . . . . . . . . Part Schematics Acquired . | . . . . . . . . . . . . . . . Parts Damaged . | . . . . . . . . . . . . . . . Bothacking | -11 -10 -9 -9 -9 -8 -8 -7 -6 -6 -6 -5 -4 -3 -2 ------------ Run | Yrd Mat Mat Min Exi Min Mat Fac Fac Ext Cet Fac Fac Res Res Used RIF Installer . | . . . . . . . . . . . . . . . Robots Hacked . | . . . . . . . . . . . . . . . Non-combat . | . . . . . . . . . . . . . . . Combat . | . . . . . . . . . . . . . . . Robot Hacks Applied . | . . . . . . . . . . . . . . . Relay Couplers Released 2 | . . . . . . . . . . . . 2 . . Machine Destruction 2 | . . . . . . . . . . . . 2 . . Fabnet Peak Effective % . | . . . . . . . . . . . . . . . Robots Rewired 21 | . . . . . . . . . 21 . . . . . Allies Hacked . | . . . . . . . . . . . . . . . Hacks Repelled . | . . . . . . . . . . . . . . . Allies | -11 -10 -9 -9 -9 -8 -8 -7 -6 -6 -6 -5 -4 -3 -2 -------- Run | Yrd Mat Mat Min Exi Min Mat Fac Fac Ext Cet Fac Fac Res Res Total Allies 30 | . . . . . . . . . 25 5 . . . . Largest Group 12 | . . . . . . . . . 8 12 10 2 . . Highest-Rated Group 770 | . . . . . . . . . 339 770 531 192 . . Highest-Rated Ally 159 | . . . . . . . . . 159 159 96 96 . . Total Orders . | . . . . . . . . . . . . . . . Ally Attacks 337 | . . . . . . . . . 174 23 90 50 . . Total Damage 8198 | . . . . . . . . . 3111 549 2551 1987 . . Kills 44 | . . . . . . . . . 18 3 13 10 . . Allies Corrupted 1 | . . . . . . . . . . . 1 . . . Allies Melted . | . . . . . . . . . . . . . . . Intel | -11 -10 -9 -9 -9 -8 -8 -7 -6 -6 -6 -5 -4 -3 -2 ------- Run | Yrd Mat Mat Min Exi Min Mat Fac Fac Ext Cet Fac Fac Res Res Active Infowar (turns) 6061 | . 308 231 . . . 381 640 313 1348 286 501 625 801 627 Optics 5522 | . . . . . . 381 640 313 1348 286 501 625 801 627 Terrain 435 | . 204 231 . . . . . . . . . . . . Seismic 104 | . 104 . . . . . . . . . . . . . Robot Analysis Total . | . . . . . . . . . . . . . . . Derelict Logs Recovered . | . . . . . . . . . . . . . . . Drone Launches . | . . . . . . . . . . . . . . . Drone Recoveries . | . . . . . . . . . . . . . . . Exploration | -11 -10 -9 -9 -9 -8 -8 -7 -6 -6 -6 -5 -4 -3 -2 ------------- Run | Yrd Mat Mat Min Exi Min Mat Fac Fac Ext Cet Fac Fac Res Res Turns Passed 6871 | 115 327 603 39 71 66 486 640 313 1348 286 501 625 801 650 Spaces Moved 4314 | 64 150 421 108 225 88 343 402 250 744 132 290 303 425 369 Core 51 | 19 . . . . . . . . . . . . . 32 Treads 988 | . 74 239 . . . 11 . . . 107 290 207 21 39 Legs 2315 | 45 76 . . . . 141 402 250 744 25 . . 334 298 Wheels 166 | . . . . . . . . . . . . 96 70 . Hover . | . . . . . . . . . . . . . . . Flight 794 | . . 182 108 225 88 191 . . . . . . . . Fastest Speed 31 | 50 120 31 31 31 31 31 114 110 108 120 160 100 115 50 Average Speed 118 | 99 140 105 31 31 31 89 149 110 124 152 160 145 135 128 Slowest Speed 260 | 120 190 250 31 31 31 190 190 110 185 160 160 160 260 240 Overloaded Moves . | . . . . . . . . . . . . . . . Propulsion Burnouts . | . . . . . . . . . . . . . . . Robots Hopped . | . . . . . . . . . . . . . . . Potential Cave-ins 2 | . . . . . . . . . . . . . . 2 Cave-ins Triggered 1 | . . . . . . . . . . . . . . 1 Exploration Rate (%) 34 | 5 44 50 26 63 36 54 16 9 88 59 12 19 17 17 Regions Visited 14 Branch Regions 5 Pre-discovered Areas 1 | . . . . 1 . . . . . . . . . . Known Exits Taken 6 | . . 1 . . . 1 . 1 1 1 1 . . . Unknown Exits Taken 8 | 1 1 . 1 1 1 . 1 . . . . 1 1 . Scrap Searched 1 | . . . . . 1 . . . . . . . . . Spaces Dug 15 | . 1 . . . . 4 2 5 . . . 1 . 2 Terrain Destroyed 385 | . 43 14 4 . . 13 2 5 . . 23 8 112 161 Melee 12 | . 1 . . . . 3 2 5 . . . 1 . . Projectile 17 | . . . . . . 3 . . . . 3 2 . 9 AOE 356 | . 42 14 4 . . 7 . . . . 20 5 112 152 Terrain Rammed . | . . . . . . . . . . . . . . . Walls Destroyed . | . . . . . . . . . . . . . . . Machines Disabled . | . . . . . . . . . . . . . . . Actions | -11 -10 -9 -9 -9 -8 -8 -7 -6 -6 -6 -5 -4 -3 -2 --------- Run | Yrd Mat Mat Min Exi Min Mat Fac Fac Ext Cet Fac Fac Res Res Total 5511 | 102 205 533 110 226 101 445 425 275 1073 208 307 409 580 512 Wait 201 | 11 1 17 . . . 13 . 13 59 39 3 8 22 15 Move 4300 | 63 149 420 107 224 87 342 401 249 743 131 289 302 424 369 Hop . | . . . . . . . . . . . . . . . Pick Up 139 | 14 4 13 . 1 . 16 10 2 10 10 . 9 32 18 Fast Attach 27 | . 2 4 . . . 9 . . 9 3 . . . . Attach 106 | 6 6 3 . . . 8 3 3 4 2 2 16 29 24 Detach 10 | . . 3 . . . . . . . . . 2 4 1 Swap 40 | . 2 5 2 . . 4 1 2 10 5 1 4 2 2 Drop 65 | 1 4 10 . 1 . 11 2 . 13 13 . 1 4 5 Fire 323 | 7 35 56 1 . . 26 . . 17 5 12 41 46 77 Melee 125 | . 2 2 . . 14 16 8 6 42 . . 18 17 . Ram . | . . . . . . . . . . . . . . . Kick 1 | . . . . . . . . . 1 . . . . . Crush 9 | . . . . . . . . . . . . 8 . 1 Escape Stasis . | . . . . . . . . . . . . . . . Rewire 165 | . . . . . . . . . 165 . . . . . Trap . | . . . . . . . . . . . . . . . Miscellaneous . | . . . . . . . . . . . . . . . Route ------- -11/Scrapyard -10/Materials -9/Materials (discovered 5 exits: *Mat / *Min x2 / *Sto x2) -9/Mines -9/Exiles -8/Mines -8/Materials (discovered 3 exits: *Fac x3) -7/Factory -6/Factory -6/Extension (discovered 3 exits: *Fac x2 / *Cet) -6/Cetus (discovered 2 exits: *Fac / [*Arc]) -5/Factory -4/Factory -3/Research (discovered 3 exits: *Res / Tes x2) -2/Research (discovered 3 exits: [*Acc] / *Qua x2) History --------- Turn | Location | Event 6 | -11/Scrapyard | Discovered new exit (range 15) 116 | -11/Scrapyard | Entered Materials 243 | -10/Materials | Core integrity fell below 50% 255 | -10/Materials | Lost 4 parts (1p1n1u1w) 300 | -10/Materials | Build established: Mutant 340 | -10/Materials | Discovered new exit (range 15) 443 | -10/Materials | Entered another Materials area 443 | -9/Materials | Evolved 2 slots: Propulsion x2 443 | -9/Materials | Discovered new exit (range 14) 763 | -9/Materials | Discovered new exit (range 10) 1020 | -9/Materials | Identified exit to Mines 1020 | -9/Materials | Identified exit to Storage 1046 | -9/Materials | Entered Mines 1064 | -9/Mines | Deemed a non-threat by the Exiles lab entrance 1064 | -9/Mines | Discovered new exit (range 5) 1073 | -9/Mines | Met a Derelict bent on vengeance 1085 | -9/Mines | Entered Exiles 1093 | -9/Exiles | Met 8R-AWN 1099 | -9/Exiles | Met EX-HEX 1113 | -9/Exiles | Met EX-DEC 1119 | -9/Exiles | Visited The Gauntlet 1135 | -9/Exiles | Learned location of Zion (-6) 1153 | -9/Exiles | Discovered new exit (range 12) 1156 | -9/Exiles | Entered Mines 1216 | -8/Mines | Discovered new exit (range 10) 1222 | -8/Mines | Entered Materials 1222 | -8/Materials | Evolved 2 slots: Utility x2 1224 | -8/Materials | Build established: Sprinter 1294 | -8/Materials | Lost 3 parts (1n2w) 1395 | -8/Materials | Core integrity fell below 50% 1425 | -8/Materials | Lost 4 parts (1p3n) 1432 | -8/Materials | Destroyed 7 combat bots 1588 | -8/Materials | Discovered new exit (range 17) 1588 | -8/Materials | Identified exit to Factory 1708 | -8/Materials | Entered Factory 1708 | -7/Factory | Evolved 2 slots: Propulsion x1, Utility x1 1727 | -7/Factory | Build established: Scavenger-Mutant 2319 | -7/Factory | Discovered new exit (range 13) 2348 | -7/Factory | Entered another Factory area 2348 | -6/Factory | Evolved 2 slots: Propulsion x1, Utility x1 2387 | -6/Factory | Identified exit to DSF 2657 | -6/Factory | Discovered new exit (range 6) 2660 | -6/Factory | Identified exit to Extension 2661 | -6/Factory | Entered Extension 2720 | -6/Extension | Build established: Mutant 2800 | -6/Extension | Rescued a captive Derelict 3167 | -6/Extension | Spotted B-75 Beast 3181 | -6/Extension | Spotted B-75 Beast 3212 | -6/Extension | Destroyed B-75 Beast 3234 | -6/Extension | Allies destroyed B-75 Beast 3249 | -6/Extension | Lost 4 parts (3n1u) 3289 | -6/Extension | Rescued a captive Derelict 3296 | -6/Extension | Energy Cycler disabled 3300 | -6/Extension | Rescued a captive Derelict 3360 | -6/Extension | Lost 4 allies 3525 | -6/Extension | Lost 5 allies 3743 | -6/Extension | Discovered new exit (range 10) 3744 | -6/Extension | Discovered new exit (range 6) 3847 | -6/Extension | Rescued A7 3850 | -6/Extension | Discovered new exit (range 13) 3902 | -6/Extension | Build established: Commander-Mutant 3964 | -6/Extension | Identified exit to Cetus 4009 | -6/Extension | Entered Cetus 4009 | -6/Cetus | Accompanied by 8 allies (A7) 4014 | -6/Cetus | Acquired a Cetus Manufacturing Module code from A7 4025 | -6/Cetus | Spotted Cetus Guard 4025 | -6/Cetus | Spotted Cetus Guard 4025 | -6/Cetus | Spotted Cetus Guard 4025 | -6/Cetus | Spotted Cetus Guard 4032 | -6/Cetus | Destroyed Cetus Guard 4035 | -6/Cetus | Destroyed Cetus Guard 4038 | -6/Cetus | Destroyed Cetus Guard 4050 | -6/Cetus | Allies destroyed Cetus Guard 4058 | -6/Cetus | System corruption reached 10% 4116 | -6/Cetus | Started Cetus Manufacturing Module 4128 | -6/Cetus | Discovered new exit (range 19) 4141 | -6/Cetus | Manufactured an Enhanced Grunt 4163 | -6/Cetus | Spotted Cetus Guard 4163 | -6/Cetus | Spotted Cetus Guard 4164 | -6/Cetus | Spotted Cetus Guard 4164 | -6/Cetus | Spotted Cetus Guard 4166 | -6/Cetus | Manufactured an Enhanced Grunt 4168 | -6/Cetus | Allies destroyed Cetus Guard 4173 | -6/Cetus | Allies destroyed Cetus Guard 4175 | -6/Cetus | Destroyed Cetus Guard 4177 | -6/Cetus | Discovered new exit (range 19) 4179 | -6/Cetus | Destroyed Cetus Guard 4191 | -6/Cetus | Manufactured an Enhanced Grunt 4191 | -6/Cetus | Met Revision 17 4216 | -6/Cetus | Manufactured an Enhanced Grunt 4241 | -6/Cetus | Manufactured an Enhanced Grunt 4259 | -6/Cetus | System corruption reached 30% 4272 | -6/Cetus | Identified exit to Factory 4295 | -6/Cetus | Entered Factory 4295 | -5/Factory | Accompanied by 11 allies (A7) 4295 | -5/Factory | Evolved 2 slots: Utility x2 4583 | -5/Factory | Build established: Scavenger-Mutant 4699 | -5/Factory | Discovered new exit (range 11) 4722 | -5/Factory | Identified exit to Factory 4796 | -5/Factory | Entered another Factory area 4796 | -4/Factory | Accompanied by 2 allies 4796 | -4/Factory | Evolved 2 slots: Power x1, Utility x1 4804 | -4/Factory | Lost 5 allies 5222 | -4/Factory | System corruption reached 10% 5344 | -4/Factory | Lost 16 parts (2p4n7u3w) 5413 | -4/Factory | Discovered new exit (range 8) 5421 | -4/Factory | Entered Research 5421 | -3/Research | Evolved 2 slots: Propulsion x2 5555 | -3/Research | Lost 5 parts (1p3n1w) 5585 | -3/Research | Build established: Mutant 5621 | -3/Research | Revision forces began assault on 0b10 5648 | -3/Research | Met up with Revision 17++ 5688 | -3/Research | Spotted B-86 Titan 5747 | -3/Research | Lost 3 parts (1p2n) 5790 | -3/Research | Lost 3 allies 5806 | -3/Research | Identified exit to Testing 5919 | -3/Research | Found Quantum Capacitor 5941 | -3/Research | Build established: Scavenger-Mutant 6089 | -3/Research | Discovered new exit (range 11) 6121 | -3/Research | Research terminal network offline 6200 | -3/Research | Spotted Striker 6222 | -3/Research | Entered another Research area 6222 | -2/Research | Evolved 2 slots: Utility x1, Weapon x1 6239 | -2/Research | Lost 3 parts (2n1u) 6240 | -2/Research | Found Prototype Device 6241 | -2/Research | Identified Adv. Particle Accelerator 6244 | -2/Research | Found Adv. Particle Accelerator 6246 | -2/Research | Found Adv. Particle Accelerator 6398 | -2/Research | Discovered new exit (range 15) 6429 | -2/Research | Garrison activated, responded to threat 6479 | -2/Research | Destroyed 8 combat bots 6486 | -2/Research | Lost 8 parts (2p3n1u2w) 6515 | -2/Research | Identified exit to Quarantine 6709 | -2/Research | Lost 11 parts (3p6n1u1w) 6777 | -2/Research | Crushed by falling debris 6855 | -2/Research | Core integrity fell below 50% 6862 | -2/Research | Core integrity fell below 20% 6868 | -2/Research | Spotted B-90 Cyclops 6872 | -2/Research | Destroyed by B-90 Cyclops with Nova Cannon Last Messages --------------- 06855_ P-80 Master resets G-73 Enforcer, system corruption cleaned. 06855_ Dropped Adv. Particle Accelerator. 06856_ Slug penetrates Wall. 06857_ Penetrated by Slug. 06857_ K-01 Serf collects debris. 06857_ Knocked back. 06858_ 5MHHJLH< 06868_ Slug penetrates B-90 Cyclops. 06871_ Slug penetrates Wall. Map ----- +----------------------------------------------------+ | ?????????????????????????????????????????????????? | | ?????????????????????????????????????????????????? | | ?????????????????????????????????????????????????? | | ?????????????????????????????????????????????????? | | ?????????????????????????????????????????????????? | | ?????????????????????????????????????????????????? | | ?????????????????????????????????????????????????? | | ?????????????????????????????????????????????????? | | ?????????????????????????????????????????????????? | | ?????????????????????????????????????????????????? | | ?????????????????????????????????????????????????? | | ?????????????????????????????????????????????????? | | ?????????????????????????????????????????????????? | | ?????????????????????????????????????????????????? | | ?????????????????????????????????????????????????? | | ?????????????????????????????????????????????????? | | ?????????????????????????????????????????????????? | | ???????????????????##+###????????????????????????? | | ???????????????????# #????????????????????????? | | ???????????????????# #??#?????????????????????? | | ???????????????????#] #?"#?#####?#?????????????? | | ???????????????????# #?"#" """""#?????????????? | | ???????????????????# #?"#" " " "#?????????????? | | ????????????#######? ##" " "#?????????????? | | ????????????# ####;## " ""#?????????????? | | ????????????# @ "#?????????????? | | ????????????# Y BB > ""#?????????????? | | ????????????# u BB "#?????????????? | | ????????????# #######T" ""#?????????????? | | ????????????## ##?????##" " "#?????????????? | | ?????????????# #????????"#" " " "#?????????????? | | ?????????????# #????????"#" """""#?????????????? | | ?????????????#%! #????????"#?#######?????????????? | | ?????????????#! #????????"#?????????????????????? | | ?????????????# #???????????????????????????????? | | ????????????## ##??????????????????????????????? | | #######/##### #??######??????????????????????? | | #### #??????????????????????? | | ## # #??????????????????????? | | ##%# ##?????????????????????? | | #### # #?????????????????????? | | # ######H #########?????????????? | | ### ### ## #?????????????? | | ####### "% #?????????????? | | ! = "" #?????????????? | | = "T #?????????????? | | ! ] ! % !! #?????????????? | | ## #!! ####+##"]% % #?????????????? | | # # = *# ##!! # # ! #?????????????? | | #### ## #% ] ## ######?????????????? | +----------------------------------------------------+ Best States ------------- Heat Dissipation 57 Coolant Potential 120 Energy Generation 41 Energy Capacity 540 Matter Stores 300 Matter Capacity 300 Sight Range 20 Terrain Scan Range 16 Terrain Scan Density 10 Armor Coverage 1200 Core Shielding 20 Weapon Shielding 66 Evasion (%) 63 Targeting Accuracy 8 Armor Integrity Analysis 30 Recoil Reduction 6 Force Boost 30 Salvage Targeting 2 Offensive Hacking 10 Item Schematics ----------------- None Robot Schematics ------------------ K-01 Serf | -6/Extension | Hacked Fabricated ------------ Nothing Repaired ---------- Nothing Alien Tech Used ----------------- None Achievements -------------- None Challenges ------------ None Game ------ Seed NeutronAlloySuite Manual? 0 Play Time 01:19:53 Cumulative 128.0 hours Start 2025.08.10 @ 05:00:48 End 2025.08.10 @ 06:20:21 Sessions 1 Manual Loads 0 Difficulty Rogue Special Mode None Game No. 221 Rogue 221 Adventurer 0 Explorer 0 Win Type - Total 2 Types 1/0/1/0/0/0/0/0/0/0 Lore% 72 Gallery% 68 Achievement% 49 Wizard Run 0 Options --------- Layout 1 ASCII 0 Keyboard 0 Movement Mouse Keybinds 0 Fullscreen 1 Font 32/SmallcapsGlow Map View 50x35 Zoom Use 0% Tactical HUD 1 Map Filters NONE Filters NONE Steam 1 RUN: 4141b8ef-e639-42f5-99fe-9cae0843119b